bitfinex-derivatives/quotes_ETHF0:USTF0_20251211
["timestamp","ask_amount","ask_price","bid_price","bid_amount"]
[1765413996802,10.97064088,3275.6,3274.8,3.2078]
[1765413997000,0.00457617,3275.5,3274.8,3.2078]
[1765413997396,0.00457617,3275.5,3272.3,4.88866389]
[1765413997397,0.4674,3275.1,3272.5,0.15275]
[1765413997605,4.97064088,3273.4,3272.5,0.15275]
[1765413997800,0.00457617,3273.3,3272.5,0.00102931]
[1765413998102,0.00457617,3273.3,3273.2,0.15272]
[1765413998306,0.00457617,3273.3,3273.1,3.2078]
[1765413998508,0.00457617,3273.3,3273.2,0.15272]
[1765413999302,0.00457617,3273.3,3272.5,0.20991676]
[1765413999303,0.00457617,3273.3,3272.5,0.00102931]
[1765413999501,3.2078,3273.0,3272.5,0.00102931]
[1765414000001,3.2078,3272.6,3271.2,0.15282]
[1765414000201,2.41923944,3271.8,3270.9,3.2078]
[1765414000402,2.41923944,3272.1,3269.7,1.5734]
[1765414000601,0.0045833,3271.7,3269.7,1.5734]
[1765414000802,0.0045833,3271.7,3270.6,1.7846645]
[1765414001201,3.2123833,3271.7,3270.9,3.2078]
[1765414001502,3.2078,3271.3,3270.6,1.57577705]
[1765414001704,3.2078,3271.3,3270.7,3.2078]
[1765414001900,3.2078,3271.3,3270.9,0.15283]
[1765414002508,3.2078,3271.3,3270.8,0.20888745]
[1765414003306,2.41923944,3271.6,3270.6,3.21017705]
[1765414003510,3.2078,3271.1,3270.6,0.00237705]
[1765414003698,3.2078,3270.7,3270.6,0.00237705]
[1765414004104,9.2078,3270.7,3270.6,0.00237705]
[1765414004407,3.2078,3270.7,3270.6,0.00237705]
[1765414004611,3.2078,3270.7,3270.6,0.2112645]
[1765414004813,3.2078,3270.7,3270.6,0.00237705]
[1765414005512,3.2078,3270.7,3269.3,3.2078]
[1765414005513,0.15285,3270.5,3269.3,3.2078]
[1765414005705,3.2078,3269.9,3269.7,1.5734]
[1765414006011,3.2078,3270.4,3269.9,0.20888745]
[1765414006208,3.2078,3270.4,3269.8,3.36068]
[1765414006507,3.2078,3270.4,3270.3,0.20888745]
[1765414006910,3.2078,3270.4,3269.3,3.2078]
[1765414006911,9.2078,3270.4,3269.3,3.2078]
[1765414007215,3.2078,3269.4,3268.8,3.2078]
[1765414007512,0.0045833,3269.4,3268.8,4.7812]
[1765414007710,0.0045833,3269.4,3267.0,1.5734]
[1765414007711,3.2078,3268.9,3267.1,3.2078]
[1765414007910,3.2078,3268.4,3268.0,0.20888745]
[1765414008106,0.0045833,3269.4,3268.2,0.15295]
[1765414008309,3.2078,3269.2,3268.0,0.36184745]
[1765414008510,3.2078,3269.2,3267.9,4.7812]
[1765414008511,3.2078,3268.3,3267.9,1.5734]
[1765414008712,3.2078,3268.7,3268.0,0.36185745]
[1765414009007,3.2078,3269.1,3268.8,1.5734]
[1765414009314,0.00297012,3269.1,3268.8,4.7812]
[1765414009816,0.00297012,3269.1,3268.9,0.15292]
[1765414010006,0.00297012,3269.1,3268.8,4.7812]
[1765414010408,0.00297012,3269.1,3268.8,4.99008745]
[1765414010910,0.00297012,3269.1,3268.8,5.14301745]
[1765414011707,0.00297012,3269.1,3269.0,0.15292]
[1765414012008,3.2078,3270.0,3269.7,1.5734]
[1765414012214,3.2078,3270.0,3269.8,0.15288]
[1765414012409,3.2078,3270.5,3269.9,0.20888745]
[1765414012811,3.21470822,3270.5,3269.9,0.21347075]
[1765414013412,0.00690822,3270.5,3269.9,3.42127075]
[1765414013718,0.00690822,3270.5,3269.9,0.21347075]
[1765414014522,6.08862138,3270.5,3269.9,0.21347075]
[1765414014713,3.2078,3270.1,3269.9,0.21347075]
[1765414015623,3.2078,3271.3,3270.9,0.15283]
[1765414015813,3.2078,3271.7,3270.9,0.15283]
[1765414016016,3.2078,3271.7,3271.0,0.15283]
[1765414016210,3.2078,3271.7,3270.8,3.2078]
[1765414016607,0.0045833,3271.6,3270.8,3.21124159]
[1765414016809,0.1573833,3271.6,3270.8,0.00344159]
[1765414017119,3.2078,3271.2,3270.8,0.00344159]
[1765414020218,3.2078,3271.2,3270.8,0.15627159]
[1765414020415,3.2123833,3271.6,3270.9,3.2078]
[1765414020618,3.2123833,3271.6,3270.8,0.00344159]
[1765414020619,3.2078,3271.1,3270.8,0.00344159]
[1765414021015,3.2078,3271.5,3270.9,0.15283]
[1765414021216,0.0045833,3271.6,3270.8,0.00344159]
[1765414021217,3.2078,3271.1,3270.8,0.00344159]
[1765414021417,3.2078,3271.1,3270.2,3.2078]
[1765414021619,3.2078,3270.3,3269.7,1.5734]
[1765414021923,3.2078,3270.3,3269.2,0.15291]
[1765414022317,3.2078,3270.3,3269.9,0.00824493]
[1765414024013,3.2078,3270.3,3267.4,11.004]
[1765414024014,0.15292,3269.1,3268.4,3.2078]
[1765414024320,3.2078,3268.5,3267.4,3.2078]
[1765414024519,3.2078,3268.5,3267.8,3.36077]
[1765414024822,3.2078,3269.4,3268.8,2.153]
[1765414025019,3.2078,3268.9,3268.8,0.00622052]
[1765414025324,3.2078,3268.9,3268.8,2.15922052]
[1765414026224,3.2148105,3269.4,3268.8,2.15922052]
[1765414026717,3.2078,3269.0,3268.8,2.15922052]
[1765414026913,3.2078,3269.0,3268.8,0.00622052]
[1765414028120,9.2078,3269.0,3267.9,2.153]
[1765414028421,3.2078,3268.1,3267.7,0.00875759]
[1765414028821,3.2078,3268.5,3267.9,2.153]
[1765414029622,3.2078,3268.1,3267.7,0.00875759]
[1765414030621,2.87391316,3267.8,3266.5,3.2078]
[1765414030818,0.00459038,3267.5,3267.3,0.00236105]
[1765414032127,0.00459038,3267.5,3266.9,3.2078]
[1765414032128,0.153,3267.3,3266.2,0.21096078]
[1765414032429,3.2078,3266.8,3266.2,0.21096078]
[1765414032932,3.2078,3266.3,3266.2,0.21096078]
[1765414033325,3.2078,3266.3,3265.4,3.2078]
[1765414033726,3.2078,3266.3,3265.6,0.15308]
[1765414033922,3.2078,3266.3,3264.7,10.217]
[1765414034123,3.21239038,3265.8,3265.1,0.1531]
[1765414034325,3.21239038,3265.8,3265.0,3.2078]
[1765414034326,3.21239038,3265.8,3265.3,0.15309]
[1765414034532,0.00459038,3265.8,3265.7,0.15307]
[1765414035022,0.00459038,3265.8,3265.4,3.2078]
[1765414035223,3.21239038,3265.8,3265.2,2.0723]
[1765414035434,3.21239038,3265.8,3265.4,0.15309]
[1765414035731,0.00459038,3265.8,3265.4,0.15309]
[1765414035923,0.00459038,3265.8,3265.1,3.2078]
[1765414036129,0.00459038,3265.8,3265.7,0.15307]
[1765414036531,0.00459038,3265.8,3265.7,6.15307]
[1765414037230,3.2078,3266.6,3266.4,0.15304]
[1765414038534,3.2078,3266.6,3266.5,0.15304]
[1765414040431,3.2078,3266.6,3266.2,0.00459038]
[1765414040834,3.2078,3266.6,3265.7,0.15307]
[1765414041032,3.2078,3266.1,3266.0,0.15306]
[1765414041330,3.2078,3266.1,3265.2,2.0723]
[1765414041535,3.2078,3265.7,3265.6,0.15308]
[1765414041734,3.2078,3266.1,3265.3,3.2078]
[1765414042530,3.2078,3266.1,3266.0,0.15306]
[1765414042731,3.2078,3266.1,3265.7,3.2078]
[1765414042732,3.2078,3266.6,3266.1,2.0723]
[1765414042934,3.2078,3267.9,3267.7,0.15298]
[1765414043531,3.2078,3267.9,3267.8,0.15298]
[1765414043730,2.30095224,3267.9,3267.1,12.09956109]
[1765414043940,1.96704224,3267.9,3267.8,0.15298]
[1765414044135,1.96988339,3267.9,3267.8,0.15298]
[1765414044340,0.00459038,3268.2,3268.1,0.15296]
[1765414044635,3.8e-07,3268.2,3268.1,0.15296]
[1765414045138,3.8e-07,3268.2,3268.1,6.67296]
[1765414045333,0.00367775,3268.2,3268.1,6.67296]
[1765414045530,0.00367775,3268.2,3267.4,3.2078]
[1765414045835,3.2078,3269.1,3267.8,3.2078]
[1765414046033,3.2078,3271.1,3268.9,2.87191391]
[1765414046234,3.2078,3271.4,3270.2,3.2078]
[1765414046434,3.2078,3271.4,3270.8,0.15284]
[1765414046937,6.43408308,3271.4,3270.8,0.00755149]
[1765414047135,3.2078,3270.9,3270.8,0.00755149]
[1765414047342,3.2078,3271.3,3270.8,0.00755149]
[1765414048646,3.2078,3270.9,3270.8,0.00755149]
[1765414049240,3.2078,3270.9,3270.2,0.15286]
[1765414049641,3.2078,3270.4,3270.2,0.15286]
[1765414049843,3.2078,3270.4,3269.9,4.49444109]
[1765414050040,3.2078,3270.8,3269.9,4.49783289]
[1765414050241,3.21877638,3270.3,3269.9,15.8501918]
[1765414050445,3.21877638,3270.3,3269.9,3.2111918]
[1765414050638,3.2078,3270.8,3270.2,0.15286]
[1765414050838,3.21877638,3270.7,3270.2,0.15286]
[1765414051340,3.2078,3270.4,3269.9,0.0033918]
[1765414051935,3.2078,3270.4,3269.9,3.2111918]
[1765414052438,3.2078,3270.4,3270.1,0.15287]
[1765414052639,3.2078,3270.4,3270.1,2.80587]
[1765414052840,3.21877638,3270.7,3270.1,1.13278109]
[1765414053042,3.2078,3270.9,3270.2,11.5728]
[1765414053238,3.2078,3270.9,3270.7,0.15284]
[1765414053640,3.21877638,3270.8,3270.7,0.15284]
[1765414054150,3.21877638,3270.8,3270.5,12.623]
[1765414054348,3.2078,3270.9,3270.5,12.623]
[1765414054543,3.21877638,3270.6,3270.1,0.15287]
[1765414055749,3.2078,3270.5,3270.1,0.15287]
[1765414055948,3.2078,3270.5,3269.0,11.009]
[1765414055949,3.2078,3270.5,3269.3,3.3607]
[1765414056149,3.2078,3270.1,3269.3,3.3607]
[1765414056550,3.2078,3270.1,3269.3,3.2078]
[1765414056851,3.2078,3270.1,3269.4,7.976]
[1765414057051,3.2078,3270.1,3269.4,7.97887386]
[1765414057545,3.2078,3270.1,3269.7,3.2078]
[1765414057742,6.42657638,3270.1,3269.9,0.15288]
[1765414059050,6.42657638,3270.1,3269.4,11.24053495]
[1765414059255,3.2078,3270.1,3269.4,11.24053495]
[1765414059647,3.2078,3270.1,3269.1,3.2078]
[1765414059840,3.2078,3270.1,3269.2,12.601]
[1765414060349,6.42657638,3270.1,3269.3,12.601]
[1765414060546,3.21877638,3270.0,3269.8,0.15288]
[1765414062046,3.21877638,3270.0,3269.5,11.23166109]
[1765414062353,3.21877638,3270.0,3269.8,0.15288]
[1765414062748,3.21877638,3270.0,3269.2,0.15291]
[1765414062950,1.452,3269.6,3268.7,3.2078]
[1765414063153,3.2078,3269.1,3268.7,0.15293]
[1765414063349,3.21016364,3269.1,3268.8,0.15293]
[1765414063554,3.21877638,3268.9,3268.8,0.15293]
[1765414064056,0.00236364,3269.1,3268.3,3.2078]
[1765414064352,0.00236364,3269.1,3268.2,0.15296]
[1765414064353,3.2078,3268.5,3268.2,0.15296]
[1765414064553,3.2078,3268.5,3268.4,0.15295]
[1765414064758,0.00236364,3269.1,3268.5,0.15294]
[1765414065053,3.21877638,3269.0,3268.3,1.84052109]
[1765414065256,3.2078,3268.8,3268.5,0.15294]
[1765414065648,0.00236364,3269.1,3268.5,12.73594]
[1765414065850,3.21877638,3269.0,3268.6,0.15294]
[1765414066049,3.21877638,3269.0,3268.2,3.2078]
[1765414066050,3.21877638,3269.0,3268.7,0.15293]
[1765414066254,0.00236364,3269.1,3268.8,0.15293]
[1765414066451,3.21877638,3269.0,3268.2,0.15296]
[1765414066654,3.2078,3268.6,3268.2,0.15296]
[1765414067655,3.2078,3268.6,3268.0,12.577]
[1765414067961,3.2078,3268.6,3268.5,0.15294]
[1765414068153,3.2078,3268.6,3268.4,12.575]
[1765414068554,6.42657638,3268.6,3268.4,12.575]
[1765414069754,6.42657638,3268.6,3268.5,0.15294]
[1765414070153,6.42657638,3268.6,3268.5,9.56694]
[1765414070859,6.42657638,3268.6,3268.5,0.15294]
[1765414071359,6.42657638,3268.6,3268.3,7.43300943]
[1765414071563,3.21877638,3268.6,3268.5,0.15294]
[1765414072466,3.2078,3269.0,3268.9,0.15292]
[1765414072856,6.42657638,3269.0,3268.9,0.15292]
[1765414073757,2.5662,3268.8,3268.6,0.15294]
[1765414074159,2.5662,3268.8,3268.0,3.2078]
[1765414074460,3.2078,3268.6,3268.2,0.15296]
[1765414074662,3.2078,3268.6,3268.0,3.2078]
[1765414074855,3.2078,3268.6,3268.5,0.15294]
[1765414075258,0.00236364,3269.1,3268.0,3.2078]
[1765414075259,3.21016364,3269.1,3269.0,0.15292]
[1765414075455,3.21016364,3269.1,3269.0,3.37032]
[1765414075658,3.21016364,3269.1,3269.0,9.37032]
[1765414075659,0.00236364,3269.1,3269.0,9.37032]
[1765414076765,3.22114002,3269.1,3269.0,0.15292]
[1765414077057,3.21016364,3269.1,3267.9,3.2078]
[1765414077259,3.2078,3268.7,3268.0,12.547]
[1765414077961,3.2078,3268.7,3268.6,0.15294]
[1765414078464,6.27363638,3268.7,3268.6,12.69694]
[1765414078763,6.27363638,3268.7,3268.6,12.69494]
[1765414079158,6.27363638,3268.7,3268.6,18.69494]
[1765414079362,0.00236364,3269.1,3269.0,0.15292]
[1765414080263,0.00236364,3269.1,3268.8,2.07498943]
[1765414080668,0.00236364,3269.1,3269.0,0.15292]
[1765414081166,0.00236364,3269.1,3269.0,7.93190094]
[1765414081366,0.00459038,3269.5,3269.4,0.1529]
[1765414081867,0.00459038,3269.5,3269.4,6.1529]
[1765414082166,3.8e-07,3269.5,3269.4,6.1529]
[1765414082366,0.00260698,3269.5,3269.4,6.15509259]
[1765414082663,6.98e-06,3269.5,3269.4,6.15509259]
[1765414083263,6.98e-06,3269.5,3269.4,4.62716202]
[1765414083566,6.98e-06,3269.5,3269.4,17.15616202]
[1765414083761,7.36e-06,3269.8,3269.7,0.15289]
[1765414083962,7.36e-06,3269.8,3269.6,3.45]
[1765414083963,3.2078,3270.4,3270.3,0.15286]
[1765414084168,3.06583638,3271.1,3270.4,3.0768]
[1765414084368,3.06583638,3271.1,3270.5,12.526]
[1765414084865,0.00753774,3271.1,3271.0,0.15283]
[1765414085063,3.07337412,3271.1,3271.0,0.15283]
[1765414085263,4.44840469,3271.1,3270.5,0.00459038]
[1765414085466,3.5543,3270.4,3270.3,0.15286]
[1765414085965,9.5543,3270.4,3269.4,0.00219259]
[1765414086171,3.2078,3269.9,3269.5,6.796]
[1765414086365,3.2078,3269.9,3269.5,6.17853669]
[1765414086566,4.27708057,3269.9,3269.8,0.15288]
[1765414086768,3.2078,3270.3,3270.1,0.15286]
[1765414086967,3.2078,3270.3,3270.2,0.15286]
[1765414087268,3.2078,3270.3,3270.2,7.97286]
[1765414087465,3.5543,3269.6,3268.2,3.80397898]
[1765414087666,3.2078,3269.0,3268.9,0.15292]
[1765414087868,4.98678094,3269.0,3267.9,3.2078]
[1765414088068,4.98678094,3269.0,3268.0,3.556]
[1765414088069,3.5543,3268.8,3268.0,3.556]
[1765414088468,1.06708798,3268.7,3268.0,0.15573765]
[1765414088768,3.2078,3268.2,3268.0,0.15573765]
[1765414088965,3.5543,3268.0,3267.5,2.1453024]
[1765414089165,4.98678094,3267.6,3266.4,6.781]
[1765414089366,3.5543,3268.0,3266.0,40.8]
[1765414089566,3.2078,3267.1,3266.1,15.7378]
[1765414089973,3.06583638,3267.0,3266.1,15.7378]
[1765414090166,3.06583638,3267.0,3266.7,0.15303]
[1765414090674,3.06583638,3267.0,3266.9,0.15302]
[1765414090872,3.2078,3267.1,3267.0,0.15301]
[1765414091065,2.89461197,3267.1,3267.0,0.15301]
[1765414091372,5.96044835,3267.1,3267.0,0.15301]
[1765414091575,5.96044835,3267.1,3267.0,12.67801]
[1765414091770,5.96044835,3267.1,3267.0,0.15301]
[1765414094174,3.06583638,3267.1,3267.0,0.15301]
[1765414094371,6.27363638,3267.1,3267.0,0.15301]
[1765414095068,6.27363638,3267.1,3267.0,12.67001]
[1765414096370,6.27363638,3267.1,3267.0,0.15301]
[1765414096578,6.27363638,3267.1,3267.0,12.66901]
[1765414098373,0.00459038,3267.3,3267.0,12.66901]
[1765414098374,0.00459038,3267.3,3267.2,0.153]
[1765414098579,3.8e-07,3267.3,3267.2,3.6449]
[1765414098772,3.2078,3267.7,3267.6,0.15298]
[1765414098967,6.27363638,3267.7,3267.6,0.15298]
[1765414099173,2.89022,3267.7,3267.6,6.15298]
[1765414099378,3.2078,3268.6,3267.6,9.2078]
[1765414099574,3.06583638,3268.4,3268.3,0.15295]
[1765414099779,3.2078,3268.6,3268.5,0.15294]
[1765414100281,0.00294477,3268.8,3268.7,0.15293]
[1765414100484,3.06878115,3268.8,3268.7,0.15293]
[1765414101576,6.41928115,3268.8,3268.7,0.15293]
[1765414101772,14.19826209,3268.8,3268.2,0.15295]
[1765414102079,2.908296,3267.9,3267.0,0.15301]
[1765414102277,3.2078,3267.4,3267.1,0.15301]
[1765414102472,3.2078,3267.4,3267.2,0.153]
[1765414102673,3.2078,3267.4,3266.9,5.536]
[1765414103186,3.2078,3267.4,3267.0,12.506]
[1765414103684,3.2078,3267.4,3267.3,0.153]
[1765414104182,0.00459038,3267.5,3267.4,0.15299]
[1765414104983,0.00459038,3267.5,3267.4,12.65499]
[1765414105371,0.00459038,3267.5,3267.4,0.15299]
[1765414106277,0.00459038,3267.5,3265.6,14.463]
[1765414106278,3.3505,3266.4,3265.2,3.80397898]
[1765414106479,3.3505,3266.4,3264.1,6.99149635]
[1765414106480,4.98678094,3266.2,3264.8,3.80397898]
[1765414106675,3.2078,3265.7,3265.0,10.241]
[1765414107186,3.2078,3265.7,3265.6,0.15308]
[1765414107389,6.11150562,3265.7,3265.6,0.15308]
[1765414108183,0.00459038,3266.0,3265.9,0.15306]
[1765414108585,2.46457547,3266.0,3265.9,0.15306]
[1765414109890,8.46457547,3266.0,3265.6,0.15308]
[1765414110193,5.66778509,3265.7,3265.6,0.15308]
[1765414110490,3.3269,3265.6,3264.7,3.85726221]
[1765414110690,2.45998509,3265.7,3264.7,3.80397898]
[1765414110892,2.45998509,3265.7,3265.6,0.15308]
[1765414111799,2.45998509,3265.7,3265.6,2.93788]
[1765414112095,3.21239038,3266.0,3265.9,0.15306]
[1765414112487,1.27708548,3266.0,3265.9,6.15306]
[1765414112794,2.2e-06,3266.4,3266.3,0.15305]
[1765414113191,1.26935139,3266.4,3266.3,0.15305]
[1765414113796,4.59625139,3266.4,3266.3,0.15648995]
[1765414114103,4.59625139,3266.4,3266.0,0.00459038]
[1765414114396,3.2078,3266.1,3266.0,0.00459038]
[1765414115292,3.2078,3266.1,3266.0,0.15765038]
[1765414116099,4.59625139,3266.4,3266.3,0.15305]
[1765414117803,1.26935139,3266.4,3266.3,0.15305]
[1765414118303,4.59625139,3266.4,3266.3,0.15305]
[1765414118509,4.59625139,3266.4,3266.0,0.00459038]
[1765414119099,3.2078,3266.1,3266.0,0.15765038]
[1765414119798,4.47714919,3266.1,3266.0,0.15765038]
[1765414121594,4.47714919,3266.1,3266.0,12.68365038]
[1765414123100,4.47714919,3266.1,3266.0,0.15765038]
[1765414125700,4.47714919,3266.1,3265.3,12.528]
[1765414125895,3.3269,3265.5,3265.3,12.68109]
[1765414126707,9.3269,3265.5,3264.8,3.80397898]
[1765414126904,3.2078,3264.9,3264.8,3.80397898]
[1765414127113,2.0709,3264.8,3264.7,3.80397898]
[1765414127507,2.0709,3264.8,3264.6,3.95709898]
[1765414128209,3.2078,3264.9,3264.8,0.15312]
[1765414128811,10.824,3264.7,3264.6,3.80397898]
[1765414129010,10.824,3264.4,3264.3,3.80397898]
[1765414129507,3.2078,3264.5,3263.5,6.99149635]
[1765414129508,10.824,3264.0,3263.7,5.38599058]
[1765414129707,0.00314864,3264.0,3263.9,0.15316]
[1765414129907,0.00314864,3264.0,3263.9,11.47756]
[1765414130214,0.00314864,3264.0,3263.9,0.15316]
[1765414130413,5.26744864,3264.0,3263.9,0.15316]
[1765414130602,1.2129,3263.4,3263.0,3.2078]
[1765414130803,3.3269,3262.7,3262.0,0.15324]
[1765414131100,1.77898094,3263.1,3262.4,0.15323]
[1765414131510,3.2078,3262.5,3261.3,3.33477842]
[1765414131712,3.2078,3261.4,3261.3,3.48805842]
[1765414131910,3.21143185,3261.4,3261.3,3.48805842]
[1765414132112,3.2078,3261.8,3261.7,0.15326]
[1765414132715,3.2078,3262.3,3262.2,0.15324]
[1765414133111,3.2107296,3262.3,3262.2,0.15324]
[1765414133715,3.2107296,3262.3,3261.9,0.00459749]
[1765414134109,3.2107296,3262.3,3262.2,0.15324]
[1765414134815,3.2107296,3262.3,3261.9,0.00459749]
[1765414135513,3.3269,3262.0,3261.3,0.00267842]
[1765414135810,3.2078,3261.4,3261.3,3.48805842]
[1765414136015,3.2078,3261.8,3261.6,0.15326]
[1765414136213,3.2078,3261.8,3261.7,0.15326]
[1765414136819,3.2078,3261.8,3261.3,0.00267842]
[1765414137117,3.2078,3261.4,3261.3,0.00267842]
[1765414137321,3.2078,3261.4,3261.3,0.15595842]
[1765414138115,3.2843,3260.6,3260.4,0.15]
[1765414138318,3.2078,3260.5,3259.6,0.15336]
[1765414138619,3.2078,3259.7,3259.6,0.15336]
[1765414138814,3.2078,3259.7,3258.6,8.965]
[1765414139015,3.2078,3259.3,3258.9,0.15339]
[1765414139321,3.0666,3259.2,3258.9,0.00363185]
[1765414139517,2.07799938,3259.1,3258.2,0.15342]
[1765414139723,3.2078,3258.9,3258.1,0.21306004]
[1765414140016,3.2078,3258.9,3258.8,0.1534]
[1765414140213,2.88227549,3258.9,3258.8,0.1534]
[1765414140917,2.75145971,3258.9,3258.8,6.1534]
[1765414141117,3.2078,3260.1,3259.8,0.15335]
[1765414141421,3.0894,3260.0,3259.8,0.15335]
[1765414141622,3.2078,3260.1,3259.8,0.15335]
[1765414142117,3.21048873,3260.1,3259.8,0.15606234]
[1765414142320,3.2078,3260.5,3260.4,0.15332]
[1765414142524,3.2078,3260.6,3260.5,0.15332]
[1765414143220,3.21028981,3260.6,3260.5,0.15332]
[1765414143426,0.00248981,3260.6,3260.5,0.15332]
[1765414143722,3.2078,3261.0,3260.8,3.7867]
[1765414144023,3.2078,3261.4,3261.3,0.15328]
[1765414144427,3.2078,3261.8,3261.6,3.7867]
[1765414144720,3.21099749,3261.8,3261.7,0.15326]
[1765414144925,3.21099749,3261.8,3261.7,9.52724087]
[1765414145120,0.00319749,3261.8,3261.7,6.15326]
[1765414145719,3.21099749,3261.8,3261.7,0.15326]
[1765414145925,0.00319749,3261.8,3261.7,6.15326]
[1765414146223,0.00319749,3261.8,3261.7,0.15326]
[1765414146421,0.00319749,3261.8,3261.7,6.15326]
[1765414147024,3.2078,3262.7,3262.6,0.15322]
[1765414147324,3.2078,3263.6,3262.6,3.28641984]
[1765414147520,3.2078,3263.6,3262.8,3.2078]
[1765414147828,3.2078,3263.6,3262.7,12.683]
[1765414148022,3.21042095,3263.6,3263.5,0.15318]
[1765414149424,9.21042095,3263.6,3262.8,0.00459749]
[1765414149632,3.2078,3263.0,3262.8,0.00459749]
[1765414149829,3.2078,3263.0,3262.7,0.00392161]
[1765414150230,3.2078,3263.0,3262.7,2.161e-05]
[1765414150529,9.2078,3263.0,3262.7,2.161e-05]
[1765414151027,3.2078,3263.0,3262.7,2.161e-05]
[1765414151218,3.2078,3263.0,3261.7,0.15326]
[1765414151423,3.2078,3262.1,3261.8,0.15325]
[1765414151930,3.2078,3262.1,3261.2,0.15328]
[1765414152128,3.2078,3261.3,3261.2,0.15328]
[1765414152329,3.21036264,3261.3,3261.2,0.15560189]
[1765414152527,3.21036264,3261.3,3261.2,0.00232189]
[1765414153228,3.21036264,3261.3,3260.9,0.00459749]
[1765414153421,3.21036264,3261.3,3260.9,0.15789749]
[1765414153632,3.21036264,3261.3,3261.0,0.15329]
[1765414154022,3.21036264,3261.3,3260.0,6.75238749]
[1765414154225,3.21036264,3261.3,3260.1,40.8]
[1765414154427,3.21036264,3261.3,3260.1,47.38818419]
[1765414154728,0.00256264,3261.3,3261.2,0.15329]
[1765414155827,3.2078,3261.0,3260.0,0.00341634]
[1765414156032,3.2078,3260.1,3260.0,0.00341634]
[1765414156628,3.2078,3260.1,3260.0,0.15675634]
[1765414156837,0.00256264,3261.3,3260.4,0.15332]
[1765414157030,3.2078,3260.5,3260.4,0.15332]
[1765414157836,3.07819197,3260.5,3260.4,0.15332]
[1765414158233,3.2078,3260.9,3260.8,0.1533]
[1765414158639,0.00256264,3261.3,3261.2,0.15329]
[1765414158833,3.2078,3262.4,3261.6,3.4777]
[1765414159033,3.2078,3262.4,3261.8,3.2078]
[1765414159335,3.2078,3262.4,3262.3,0.15323]
[1765414160039,3.2078,3262.4,3262.3,0.15654913]
[1765414160040,3.21100029,3262.4,3262.3,0.15654913]
[1765414161241,3.21100029,3262.4,3261.5,0.15327]
[1765414161441,3.2078,3261.6,3261.5,0.15327]
[1765414162142,3.2078,3261.6,3261.5,0.15706888]
[1765414162543,3.2078,3262.0,3261.5,0.15706888]
[1765414162845,3.2078,3262.0,3261.6,0.15327]
[1765414163136,3.2078,3262.0,3261.9,0.15325]
[1765414164144,3.2078,3262.0,3261.5,0.00379888]
[1765414164344,3.2078,3261.6,3261.5,0.15706888]
[1765414164840,3.2078,3262.0,3261.9,0.15325]
[1765414165443,3.6428,3261.6,3261.5,0.00379888]
[1765414165639,6.8506,3261.6,3261.5,0.00379888]
[1765414166242,3.2078,3261.6,3261.5,0.15706888]
[1765414169348,3.2078,3262.0,3261.9,0.15325]
[1765414170848,3.50260029,3262.4,3262.3,0.15323]
[1765414171048,6.71040029,3262.4,3262.3,0.15323]
[1765414171444,3.21100029,3262.4,3262.3,0.15323]
[1765414172147,6.71040029,3262.4,3261.5,0.00379888]
[1765414172343,3.2078,3261.6,3261.5,0.15706888]
[1765414172648,3.2078,3262.0,3261.5,0.00379888]
[1765414172850,3.2078,3262.0,3261.9,0.15325]
[1765414174147,3.2078,3262.0,3261.9,6.15325]
[1765414174544,3.2078,3262.0,3261.9,0.15325]
[1765414177149,3.21100029,3262.4,3262.3,0.15323]
[1765414179454,0.00320029,3262.4,3262.3,0.15323]
[1765414179656,3.21100029,3262.4,3262.3,0.15323]
[1765414179855,0.00320029,3262.4,3262.3,12.78523]
[1765414180057,2.9e-07,3262.4,3262.3,18.78523]
[1765414180354,2.9e-07,3262.4,3262.3,0.15323]
[1765414180855,2.9e-07,3262.4,3262.3,9.36103]
[1765414181359,3.2078,3263.2,3262.7,3.5749]
[1765414181555,3.2078,3263.2,3262.8,3.2078]
[1765414181755,3.2078,3263.2,3262.8,6.56154468]
[1765414182153,3.2078,3263.2,3263.1,0.1532]
[1765414182352,0.00268134,3263.2,3263.1,0.1532]
[1765414182553,0.00268134,3263.2,3263.1,6.1532]
[1765414182756,0.00036723,3263.5,3263.4,3.65288]
[1765414182959,0.00036723,3263.5,3263.4,19.48668]
[1765414183161,0.00036723,3263.5,3263.4,25.48668]
[1765414183456,0.00036723,3263.5,3263.4,66.28668]
[1765414183660,3.2078,3264.5,3264.4,0.15313]
[1765414184763,0.00459749,3264.8,3264.7,0.15312]
[1765414185055,7.49e-06,3264.8,3264.7,0.15312]
[1765414185356,7.49e-06,3264.8,3264.7,18.77512]
[1765414185563,7.49e-06,3264.8,3264.7,22.04769497]
[1765414185764,6.38376125,3267.6,3266.1,0.15306]
[1765414185765,3.2078,3266.2,3266.1,0.15306]
[1765414185962,3.2078,3266.2,3266.1,12.77206]
[1765414186152,0.00349781,3266.2,3266.1,12.77206]
[1765414186357,7.81e-06,3266.2,3266.1,22.21954311]
[1765414186655,0.00459749,3266.5,3266.1,62.86648311]
[1765414186862,3.2078,3267.7,3267.3,0.153]
[1765414187165,3.2078,3267.7,3267.4,12.617]
[1765414187461,3.2078,3267.7,3267.6,0.15298]
[1765414187651,3.2109537,3267.7,3267.6,0.15531856]
[1765414187850,0.0031537,3267.7,3267.6,0.15531856]
[1765414188459,0.0031537,3267.7,3267.6,12.77131856]
[1765414189862,0.0031537,3267.7,3267.6,0.15531856]
[1765414190062,0.0031537,3267.7,3267.6,12.76631856]
[1765414191356,0.0031537,3267.7,3267.6,0.15531856]
[1765414191552,0.0031537,3267.7,3267.6,12.75531856]
[1765414191752,0.0031537,3267.7,3267.6,0.15531856]
[1765414191958,0.0031537,3267.7,3267.6,12.75431856]
[1765414192460,3.3101,3267.2,3266.4,0.15304]
[1765414192664,3.2078,3266.9,3266.5,12.596]
[1765414192858,3.2078,3266.9,3266.6,0.15303]
[1765414193356,3.2078,3266.9,3266.7,0.15303]
[1765414193760,3.2078,3266.9,3266.8,0.15302]
[1765414193961,3.2078,3266.9,3266.8,12.74902]
[1765414194259,3.2078,3266.9,3266.8,0.15302]
[1765414194865,3.2078,3266.9,3266.2,0.15305]